[Event "Paul Keres Memorial Festival 2022"]
[Site "Pärnu, Estonia Resort Hotel & Spa"]
[Date "2022.07.18"]
[Round "1.1"]
[White "Kantans, Toms"]
[Black "Rosental, Urmas"]
[Result "1-0"]
[TimeControl "60 min for 30 moves + 30 min until game end, from first move every move 30 sec time increment"]
[WhiteTitle "GM"]
[WhiteFideId "11602945"]
[BlackFideId "4511441"]
[WhiteElo "2486"]
[BlackElo "1452"]

1. e4 {[%clk 01:00:56]} {[%emt 00:00:03]} e5 {[%clk 01:00:51]} {[%emt
00:00:10]} 2. Nf3 {[%clk 01:01:20]} {[%emt 00:00:07]} Nc6 {[%clk 01:01:09]}
{[%emt 00:00:13]} 3. d4 {[%clk 01:01:39]} {[%emt 00:00:10]} exd4 {[%clk
01:01:17]} {[%emt 00:00:23]} 4. Nxd4 {[%clk 01:02:02]} {[%emt 00:00:05]} d5
{[%clk 00:57:59]} {[%emt 00:03:48]} 5. Bb5 {[%clk 01:00:09]} {[%emt 00:02:23]}
Bd7 {[%clk 00:57:49]} {[%emt 00:00:40]} 6. exd5 {[%clk 00:59:50]} {[%emt
00:00:48]} Nxd4 {[%clk 00:58:05]} {[%emt 00:00:15]} 7. Bxd7+ {[%clk 01:00:13]}
{[%emt 00:00:07]} Qxd7 {[%clk 00:58:27]} {[%emt 00:00:08]} 8. Qxd4 {[%clk
01:00:37]} {[%emt 00:00:06]} Nf6 {[%clk 00:58:09]} {[%emt 00:00:49]} 9. Nc3
{[%clk 01:00:28]} {[%emt 00:00:39]} b6 {[%clk 00:53:17]} {[%emt 00:05:22]} 10.
O-O {[%clk 00:59:48]} {[%emt 00:01:08]} O-O-O {[%clk 00:53:24]} {[%emt
00:00:24]} 11. Bg5 {[%clk 00:59:03]} {[%emt 00:01:15]} Bc5 {[%clk 00:52:10]}
{[%emt 00:01:44]} 12. Qc4 {[%clk 00:59:07]} {[%emt 00:00:26]} Kb7 {[%clk
00:51:20]} {[%emt 00:01:21]} 13. b4 {[%clk 00:59:08]} {[%emt 00:00:29]} Bd6
{[%clk 00:50:23]} {[%emt 00:01:27]} 14. Rad1 {[%clk 00:57:31]} {[%emt
00:02:07]} h6 {[%clk 00:43:56]} {[%emt 00:06:57]} 15. Bh4 {[%clk 00:56:10]}
{[%emt 00:01:50]} Rde8 {[%clk 00:42:16]} {[%emt 00:02:11]} 16. Bxf6 {[%clk
00:51:59]} {[%emt 00:04:40]} gxf6 {[%clk 00:42:33]} {[%emt 00:00:14]} 17. Ne4
{[%clk 00:52:18]} {[%emt 00:00:10]} Be7 {[%clk 00:23:24]} {[%emt 00:19:39]} 18.
d6 {[%clk 00:45:14]} {[%emt 00:07:34]} cxd6 {[%clk 00:19:07]} {[%emt 00:04:48]}
19. Qxf7 {[%clk 00:45:35]} {[%emt 00:00:08]} Ref8 {[%clk 00:16:56]} {[%emt
00:02:41]} 20. Rxd6 {[%clk 00:42:44]} {[%emt 00:03:21]} Rxf7 {[%clk 00:13:00]}
{[%emt 00:04:26]} 21. Rxd7+ {[%emt 00:00:09]} Kb8 {[%clk 00:12:47]} {[%emt
00:00:41]} 22. Nxf6 {[%clk 00:40:25]} {[%emt 00:03:10]} Rxf6 {[%clk 00:11:36]}
{[%emt 00:01:42]} 23. Rxe7 {[%clk 00:40:49]} {[%emt 00:00:07]} Rc6 {[%clk
00:11:13]} {[%emt 00:00:53]} 24. Re2 {[%clk 00:37:09]} {[%emt 00:04:09]} Rhc8
{[%clk 00:11:19]} {[%emt 00:00:25]} 25. f4 {[%clk 00:37:31]} {[%emt 00:00:07]}
Rxc2 {[%clk 00:11:33]} {[%emt 00:00:17]} 26. Rxc2 {[%clk 00:37:55]} {[%emt
00:00:05]} Rxc2 {[%clk 00:11:59]} {[%emt 00:00:05]} 27. f5 {[%clk 00:38:19]}
{[%emt 00:00:05]} Rc7 {[%clk 00:11:47]} {[%emt 00:00:42]} 28. g4 {[%clk
00:36:33]} {[%emt 00:02:15]} Kc8 {[%clk 00:11:19]} {[%emt 00:00:58]} 29. Kg2
{[%clk 00:35:47]} {[%emt 00:01:16]} Kd8 {[%clk 00:11:28]} {[%emt 00:00:22]} 30.
Kg3 {[%clk 01:06:10]} {[%emt 00:00:07]} Rc2 {[%clk 00:41:13]} {[%emt 00:00:45]}
31. Rf2 {[%clk 01:06:13]} {[%emt 00:00:27]} Rc4 {[%clk 00:40:01]} {[%emt
00:01:42]} 32. a3 {[%clk 01:06:35]} {[%emt 00:00:09]} Ke7 {[%clk 00:40:17]}
{[%emt 00:00:14]} 33. Re2+ {[%clk 01:06:54]} {[%emt 00:00:10]} Kf7 {[%clk
00:40:29]} {[%emt 00:00:19]} 34. Re3 {[%clk 01:07:05]} {[%emt 00:00:19]} Rc1
{[%clk 00:40:11]} {[%emt 00:00:49]} 35. Kh4 {[%clk 01:07:16]} {[%emt 00:00:18]}
1-0

[Event "Paul Keres Memorial Festival 2022"]
[Site "Pärnu, Estonia Resort Hotel & Spa"]
[Date "2022.07.18"]
[Round "1.2"]
[White "Pallum, Rasmus"]
[Black "Sulskis, Sarunas"]
[Result "0-1"]
[TimeControl "60 min for 30 moves + 30 min until game end, from first move every move 30 sec time increment"]
[BlackTitle "GM"]
[WhiteFideId "4511417"]
[BlackFideId "12800112"]
[WhiteElo "1435"]
[BlackElo "2481"]

1. Nf3 {[%clk 01:00:42]} {[%emt 00:00:17]} c5 {[%clk 01:00:38]} {[%emt
00:00:23]} 2. e4 {[%clk 01:00:21]} {[%emt 00:00:51]} Nf6 {[%clk 01:00:28]}
{[%emt 00:00:40]} 3. Nc3 {[%clk 00:59:18]} {[%emt 00:01:32]} d5 {[%clk
01:00:08]} {[%emt 00:00:50]} 4. exd5 {[%clk 00:55:18]} {[%emt 00:04:31]} Nxd5
{[%clk 01:00:09]} {[%emt 00:00:29]} 5. Bb5+ {[%clk 00:54:32]} {[%emt 00:01:17]}
Bd7 {[%clk 00:59:13]} {[%emt 00:01:26]} 6. Bxd7+ {[%clk 00:53:00]} {[%emt
00:02:02]} Qxd7 {[%clk 00:59:34]} {[%emt 00:00:09]} 7. Nxd5 {[%clk 00:47:26]}
{[%emt 00:06:04]} Qxd5 {[%clk 00:59:55]} {[%emt 00:00:08]} 8. d4 {[%clk
00:47:33]} {[%emt 00:00:23]} e6 {[%clk 00:51:57]} {[%emt 00:08:29]} 9. dxc5
{[%clk 00:42:27]} {[%emt 00:05:36]} Qxd1+ {[%clk 00:49:36]} {[%emt 00:02:51]}
10. Kxd1 {[%clk 00:42:49]} {[%emt 00:00:08]} Bxc5 {[%clk 00:50:01]} {[%emt
00:00:05]} 11. Ke2 {[%clk 00:42:25]} {[%emt 00:00:54]} Nd7 {[%clk 00:49:08]}
{[%emt 00:01:23]} 12. Rd1 {[%clk 00:36:32]} {[%emt 00:06:23]} Ke7 {[%clk
00:27:02]} {[%emt 00:22:37]} 13. Ne1 {[%clk 00:26:25]} {[%emt 00:10:37]} Bd6
{[%clk 00:23:23]} {[%emt 00:04:08]} 14. Be3 {[%clk 00:23:10]} {[%emt 00:03:46]}
Rhc8 {[%clk 00:23:15]} {[%emt 00:00:38]} 15. c3 {[%clk 00:22:13]} {[%emt
00:01:27]} Nb6 {[%clk 00:20:14]} {[%emt 00:03:31]} 16. Bxb6 {[%clk 00:20:35]}
{[%emt 00:02:08]} axb6 {[%clk 00:20:37]} {[%emt 00:00:07]} 17. Nc2 {[%clk
00:20:19]} {[%emt 00:00:46]} Ra5 {[%clk 00:18:45]} {[%emt 00:02:22]} 18. Ne3
{[%clk 00:16:53]} {[%emt 00:03:55]} h5 {[%clk 00:15:20]} {[%emt 00:03:55]} 19.
Rd3 {[%clk 00:12:28]} {[%emt 00:04:56]} Be5 {[%clk 00:13:57]} {[%emt 00:01:52]}
20. g3 {[%clk 00:07:23]} {[%emt 00:05:35]} g5 {[%clk 00:13:52]} {[%emt
00:00:35]} 21. Kd2 {[%clk 00:03:59]} {[%emt 00:03:54]} f5 {[%clk 00:11:44]}
{[%emt 00:02:38]} 22. f3 {[%clk 00:01:58]} {[%emt 00:02:31]} f4 {[%clk
00:09:36]} {[%emt 00:02:38]} 23. Nf1 {[%clk 00:01:56]} {[%emt 00:00:33]} fxg3
{[%clk 00:09:26]} {[%emt 00:00:40]} 24. hxg3 {[%clk 00:01:41]} {[%emt
00:00:44]} h4 {[%clk 00:09:40]} {[%emt 00:00:17]} 25. g4 {[%clk 00:00:54]}
{[%emt 00:01:17]} h3 {[%clk 00:08:53]} {[%emt 00:01:16]} 26. Kc2 {[%clk
00:00:33]} {[%emt 00:00:52]} h2 {[%clk 00:07:55]} {[%emt 00:01:27]} 27. Nd2
{[%clk 00:00:32]} {[%emt 00:00:31]} Rxa2 {[%clk 00:06:33]} {[%emt 00:01:53]} 28.
Rh1 {[%clk 00:00:42]} {[%emt 00:00:19]} b5 {[%clk 00:05:40]} {[%emt 00:01:24]}
29. Kb3 {[%clk 00:00:34]} {[%emt 00:00:37]} Rca8 {[%clk 00:04:59]} {[%emt
00:01:11]} 30. Ne4 {[%clk 00:30:32]} {[%emt 00:00:33]} Ra1 {[%clk 00:34:35]}
{[%emt 00:00:54]} 31. Rdd1 {[%clk 00:30:51]} {[%emt 00:00:10]} Rxd1 {[%clk
00:34:37]} {[%emt 00:00:29]} 32. Rxd1 {[%clk 00:31:13]} {[%emt 00:00:07]} Bf4
{[%clk 00:27:11]} {[%emt 00:07:55]} 33. Kb4 {[%clk 00:29:58]} {[%emt 00:01:45]}
Ra4+ {[%clk 00:20:19]} {[%emt 00:07:22]} 34. Kxb5 {[%clk 00:28:30]} {[%emt
00:01:57]} Ra2 {[%clk 00:20:39]} {[%emt 00:00:11]} 35. b4 {[%clk 00:28:27]}
{[%emt 00:00:33]} Rg2 {[%clk 00:20:42]} {[%emt 00:00:26]} 36. Rh1 {[%clk
00:28:11]} {[%emt 00:00:45]} Rg1 {[%clk 00:19:50]} {[%emt 00:01:23]} 37. Nf2
{[%clk 00:28:27]} {[%emt 00:00:14]} Bg3 {[%clk 00:19:54]} {[%emt 00:00:27]} 38.
c4 {[%clk 00:28:27]} {[%emt 00:00:30]} Kd7 {[%clk 00:18:46]} {[%emt 00:01:38]}
39. c5 {[%clk 00:28:33]} {[%emt 00:00:24]} Kc7 {[%clk 00:17:31]} {[%emt
00:01:45]} 40. Kc4 {[%clk 00:28:07]} {[%emt 00:00:56]} Kc6 {[%clk 00:16:41]}
{[%emt 00:01:20]} 41. b5+ {[%clk 00:28:04]} {[%emt 00:00:33]} Kc7 {[%clk
00:16:35]} {[%emt 00:00:37]} 42. Kb4 {[%clk 00:28:19]} {[%emt 00:00:16]} Bxf2
{[%clk 00:16:04]} {[%emt 00:01:00]} 43. Rxh2 {[%clk 00:28:41]} {[%emt
00:00:07]} Rb1+ {[%clk 00:16:24]} {[%emt 00:00:11]} 0-1

[Event "Paul Keres Memorial Festival 2022"]
[Site "Pärnu, Estonia Resort Hotel & Spa"]
[Date "2022.07.18"]
[Round "1.3"]
[White "Maiorov, Nikita"]
[Black "Haapsal, Maria Joanna"]
[Result "1-0"]
[TimeControl "60 min for 30 moves + 30 min until game end, from first move every move 30 sec time increment"]
[WhiteTitle "GM"]
[WhiteFideId "13501720"]
[BlackFideId "4512286"]
[WhiteElo "2474"]
[BlackElo "1375"]

1. d4 {[%clk 01:00:56]} {[%emt 00:38:58]} d5 {[%clk 01:00:50]} {[%emt
00:00:23]} 2. c4 {[%clk 01:01:03]} {[%emt 00:00:24]} e6 {[%clk 01:01:13]}
{[%emt 00:00:07]} 3. Nc3 {[%clk 01:01:29]} {[%emt 00:00:05]} Nf6 {[%clk
01:01:37]} {[%emt 00:00:05]} 4. cxd5 {[%clk 01:01:56]} {[%emt 00:00:04]} exd5
{[%clk 01:02:02]} {[%emt 00:00:05]} 5. Bg5 {[%clk 01:02:14]} {[%emt 00:00:11]}
Nbd7 {[%clk 01:02:16]} {[%emt 00:00:16]} 6. e3 {[%clk 01:01:52]} {[%emt
00:00:53]} Be7 {[%clk 01:02:39]} {[%emt 00:00:07]} 7. Bd3 {[%clk 01:02:08]}
{[%emt 00:00:14]} O-O {[%clk 01:02:54]} {[%emt 00:00:15]} 8. Nf3 {[%clk
01:02:17]} {[%emt 00:00:20]} b6 {[%clk 01:02:38]} {[%emt 00:00:46]} 9. O-O
{[%clk 01:02:37]} {[%emt 00:00:10]} Bb7 {[%clk 01:03:00]} {[%emt 00:00:08]} 10.
Rc1 {[%clk 00:49:22]} {[%emt 00:13:45]} c5 {[%clk 01:01:47]} {[%emt 00:01:43]}
11. Qe2 {[%clk 00:48:54]} {[%emt 00:00:57]} c4 {[%clk 01:01:02]} {[%emt
00:01:15]} 12. Bf5 {[%clk 00:48:58]} {[%emt 00:00:26]} h6 {[%clk 01:00:13]}
{[%emt 00:01:18]} 13. Bh4 {[%clk 00:49:06]} {[%emt 00:00:22]} a6 {[%clk
00:59:36]} {[%emt 00:01:07]} 14. a4 {[%clk 00:47:15]} {[%emt 00:02:21]} Re8
{[%clk 00:53:41]} {[%emt 00:06:25]} 15. Ne5 {[%clk 00:44:06]} {[%emt 00:03:39]}
Nxe5 {[%clk 00:45:35]} {[%emt 00:08:36]} 16. dxe5 {[%clk 00:44:31]} {[%emt
00:00:05]} Nd7 {[%clk 00:45:32]} {[%emt 00:00:33]} 17. Bg3 {[%clk 00:43:29]}
{[%emt 00:01:32]} Bb4 {[%clk 00:42:48]} {[%emt 00:03:13]} 18. f4 {[%clk
00:43:19]} {[%emt 00:00:41]} Nc5 {[%clk 00:41:04]} {[%emt 00:02:14]} 19. Rfd1
{[%clk 00:33:43]} {[%emt 00:10:06]} Bxc3 {[%clk 00:39:14]} {[%emt 00:02:20]} 20.
bxc3 {[%clk 00:34:10]} {[%emt 00:00:04]} Qe7 {[%clk 00:35:44]} {[%emt
00:04:00]} 21. Bb1 {[%clk 00:31:20]} {[%emt 00:03:20]} Bc6 {[%clk 00:33:16]}
{[%emt 00:02:57]} 22. Qg4 {[%clk 00:26:51]} {[%emt 00:05:00]} Qd7 {[%clk
00:25:40]} {[%emt 00:08:02]} 23. Bf5 {[%clk 00:21:13]} {[%emt 00:06:12]} Qb7
{[%clk 00:23:18]} {[%emt 00:02:52]} 24. Bh4 {[%clk 00:20:14]} {[%emt 00:01:29]}
Kh8 {[%clk 00:20:22]} {[%emt 00:03:26]} 25. Qh5 {[%clk 00:14:11]} {[%emt
00:06:33]} Kg8 {[%clk 00:19:28]} {[%emt 00:01:24]} 26. Rf1 {[%clk 00:10:36]}
{[%emt 00:04:05]} Bd7 {[%clk 00:17:17]} {[%emt 00:02:42]} 27. Bb1 {[%clk
00:10:48]} {[%emt 00:00:18]} Ne4 {[%clk 00:09:53]} {[%emt 00:07:54]} 28. Bxe4
{[%clk 00:06:31]} {[%emt 00:04:47]} dxe4 {[%clk 00:10:21]} {[%emt 00:00:02]} 29.
Ra1 {[%clk 00:06:49]} {[%emt 00:00:11]} b5 {[%clk 00:07:30]} {[%emt 00:03:22]}
30. Bg3 {[%clk 00:36:21]} {[%emt 00:00:58]} Qb6 {[%clk 00:36:33]} {[%emt
00:01:27]} 31. Rad1 {[%clk 00:33:32]} {[%emt 00:03:19]} Bc6 {[%clk 00:33:19]}
{[%emt 00:03:44]} 32. Rd4 {[%clk 00:32:47]} {[%emt 00:01:15]} Rad8 {[%clk
00:28:37]} {[%emt 00:05:11]} 33. f5 {[%clk 00:31:01]} {[%emt 00:02:18]} Qc5
{[%clk 00:24:47]} {[%emt 00:04:19]} 34. axb5 {[%clk 00:30:03]} {[%emt
00:01:28]} axb5 {[%clk 00:24:47]} {[%emt 00:00:30]} 35. f6 {[%clk 00:28:40]}
{[%emt 00:01:52]} Qf8 {[%clk 00:24:35]} {[%emt 00:00:41]} 36. e6 {[%clk
00:13:32]} {[%emt 00:15:39]} g6 {[%clk 00:16:32]} {[%emt 00:08:33]} 37. exf7+
{[%clk 00:13:55]} {[%emt 00:00:07]} Kxf7 {[%clk 00:16:44]} {[%emt 00:00:18]} 38.
Qd1 {[%clk 00:14:20]} {[%emt 00:00:05]} Rxd4 {[%clk 00:16:00]} {[%emt
00:01:15]} 39. Qxd4 {[%clk 00:14:19]} {[%emt 00:00:30]} Rd8 {[%clk 00:16:04]}
{[%emt 00:00:25]} 40. Qb6 {[%clk 00:14:29]} {[%emt 00:00:21]} Be8 {[%clk
00:15:06]} {[%emt 00:01:27]} 41. Qxd8 {[%clk 00:14:34]} {[%emt 00:00:26]} 1-0

[Event "Paul Keres Memorial Festival 2022"]
[Site "Pärnu, Estonia Resort Hotel & Spa"]
[Date "2022.07.18"]
[Round "1.4"]
[White "Rajandu, Aaron"]
[Black "Smirnov, Artem"]
[Result "0-1"]
[TimeControl "60 min for 30 moves + 30 min until game end, from first move every move 30 sec time increment"]
[BlackTitle "IM"]
[WhiteFideId "4514734"]
[BlackFideId "4143256"]
[WhiteElo "1338"]
[BlackElo "2419"]

1. e4 {[%clk 01:00:30]} {[%emt 00:40:17]} c5 {[%clk 01:00:30]} {[%emt
00:00:05]} 2. c3 {[%clk 01:00:30]} {[%emt 00:00:03]} d6 {[%clk 01:00:49]}
{[%emt 00:00:53]} 3. d4 {[%clk 01:00:36]} {[%emt 00:00:24]} Nf6 {[%clk
01:01:11]} {[%emt 00:00:09]} 4. Bd3 {[%clk 00:57:10]} {[%emt 00:03:57]} e5
{[%clk 01:01:20]} {[%emt 00:00:21]} 5. d5 {[%clk 00:53:15]} {[%emt 00:04:25]}
g6 {[%clk 01:01:04]} {[%emt 00:00:46]} 6. c4 {[%clk 00:50:58]} {[%emt
00:02:48]} Bg7 {[%clk 01:01:14]} {[%emt 00:00:19]} 7. Nf3 {[%clk 00:49:00]}
{[%emt 00:02:28]} O-O {[%clk 01:01:34]} {[%emt 00:00:10]} 8. O-O {[%clk
00:48:48]} {[%emt 00:00:42]} Ne8 {[%clk 00:59:41]} {[%emt 00:02:23]} 9. Ne1
{[%clk 00:44:06]} {[%emt 00:05:12]} f5 {[%clk 00:58:54]} {[%emt 00:01:17]} 10.
f3 {[%clk 00:41:57]} {[%emt 00:02:39]} f4 {[%clk 00:57:18]} {[%emt 00:02:06]}
11. Rf2 {[%clk 00:39:26]} {[%emt 00:03:01]} h5 {[%clk 00:54:44]} {[%emt
00:03:05]} 12. Be2 {[%clk 00:37:56]} {[%emt 00:02:00]} g5 {[%clk 00:52:09]}
{[%emt 00:03:04]} 13. Nc3 {[%clk 00:35:03]} {[%emt 00:03:23]} Nf6 {[%clk
00:52:20]} {[%emt 00:00:18]} 14. h3 {[%clk 00:33:23]} {[%emt 00:02:09]} Rf7
{[%clk 00:50:08]} {[%emt 00:02:42]} 15. Rf1 {[%clk 00:30:14]} {[%emt 00:03:39]}
Bf8 {[%clk 00:46:15]} {[%emt 00:04:24]} 16. Nd3 {[%clk 00:30:00]} {[%emt
00:00:44]} Rg7 {[%clk 00:43:57]} {[%emt 00:02:48]} 17. Nf2 {[%clk 00:28:59]}
{[%emt 00:01:31]} Nbd7 {[%clk 00:44:08]} {[%emt 00:00:18]} 18. a3 {[%clk
00:27:30]} {[%emt 00:01:59]} Be7 {[%clk 00:38:23]} {[%emt 00:06:14]} 19. b4
{[%clk 00:26:47]} {[%emt 00:01:13]} b6 {[%clk 00:37:54]} {[%emt 00:01:00]} 20.
b5 {[%clk 00:25:11]} {[%emt 00:02:06]} Nf8 {[%clk 00:37:45]} {[%emt 00:00:39]}
21. Bd2 {[%clk 00:23:49]} {[%emt 00:01:51]} Ng6 {[%clk 00:35:07]} {[%emt
00:03:09]} 22. a4 {[%clk 00:23:00]} {[%emt 00:01:20]} a5 {[%clk 00:33:01]}
{[%emt 00:02:35]} 23. bxa6 {[%clk 00:19:59]} {[%emt 00:03:31]} Rxa6 {[%clk
00:32:59]} {[%emt 00:00:32]} 24. Nb5 {[%clk 00:20:00]} {[%emt 00:00:29]} Nh8
{[%clk 00:29:11]} {[%emt 00:04:18]} 25. Qe1 {[%clk 00:16:19]} {[%emt 00:04:10]}
g4 {[%clk 00:19:19]} {[%emt 00:10:22]} 26. hxg4 {[%clk 00:16:25]} {[%emt
00:00:24]} Nxg4 {[%clk 00:12:25]} {[%emt 00:07:26]} 27. fxg4 {[%clk 00:14:44]}
{[%emt 00:02:10]} Bh4 {[%clk 00:11:23]} {[%emt 00:01:31]} 28. Qd1 {[%clk
00:11:06]} {[%emt 00:04:07]} Bg3 {[%clk 00:06:39]} {[%emt 00:05:15]} 29. Be1
{[%clk 00:06:00]} {[%emt 00:05:37]} Qh4 {[%clk 00:04:37]} {[%emt 00:02:31]} 30.
Nh3 {[%clk 00:05:52]} {[%emt 00:00:38]} hxg4 {[%clk 00:04:27]} {[%emt
00:00:41]} 31. Bxg3 {[%clk 00:04:57]} {[%emt 00:01:25]} fxg3 {[%clk 00:34:27]}
{[%emt 00:00:30]} 32. Bf3 {[%clk 00:34:10]} {[%emt 00:01:16]} gxh3 {[%clk
00:34:07]} {[%emt 00:00:50]} 33. Qe2 {[%clk 00:31:47]} {[%emt 00:02:53]} Ng6
{[%clk 00:31:44]} {[%emt 00:02:53]} 34. Bh5 {[%clk 00:22:34]} {[%emt 00:09:44]}
hxg2 {[%clk 00:31:58]} {[%emt 00:00:16]} 0-1

[Event "Paul Keres Memorial Festival 2022"]
[Site "Pärnu, Estonia Resort Hotel & Spa"]
[Date "2022.07.18"]
[Round "1.5"]
[White "Chukavin, Kirill"]
[Black "Testelecs, Ilja Kuprijans"]
[Result "1-0"]
[TimeControl "60 min for 30 moves + 30 min until game end, from first move every move 30 sec time increment"]
[WhiteTitle "FM"]
[WhiteFideId "4503023"]
[BlackFideId "11613530"]
[WhiteElo "2418"]
[BlackElo "1319"]

1. e4 {[%clk 01:00:49]} {[%emt 00:00:09]} e5 {[%clk 01:00:48]} {[%emt
00:00:12]} 2. Nf3 {[%clk 01:00:51]} {[%emt 00:00:27]} Nc6 {[%clk 01:01:02]}
{[%emt 00:00:19]} 3. Nc3 {[%clk 01:01:06]} {[%emt 00:00:14]} Nf6 {[%clk
01:00:45]} {[%emt 00:00:47]} 4. Be2 {[%clk 01:01:29]} {[%emt 00:00:06]} Be7
{[%clk 01:00:25]} {[%emt 00:00:50]} 5. d4 {[%clk 01:01:52]} {[%emt 00:00:07]}
exd4 {[%clk 00:59:49]} {[%emt 00:01:07]} 6. Nxd4 {[%clk 01:02:15]} {[%emt
00:00:07]} d6 {[%clk 00:55:29]} {[%emt 00:04:50]} 7. O-O {[%clk 01:01:50]}
{[%emt 00:00:54]} O-O {[%clk 00:55:29]} {[%emt 00:00:30]} 8. Be3 {[%clk
01:02:02]} {[%emt 00:00:18]} Ne5 {[%clk 00:53:00]} {[%emt 00:03:00]} 9. h3
{[%clk 00:58:58]} {[%emt 00:03:33]} c6 {[%clk 00:46:42]} {[%emt 00:06:49]} 10.
Qd2 {[%clk 00:56:44]} {[%emt 00:02:44]} Qc7 {[%clk 00:38:09]} {[%emt 00:09:03]}
11. a4 {[%clk 00:56:53]} {[%emt 00:00:19]} a5 {[%clk 00:37:30]} {[%emt
00:01:11]} 12. Rad1 {[%clk 00:56:36]} {[%emt 00:00:46]} Rd8 {[%clk 00:35:18]}
{[%emt 00:02:43]} 13. f4 {[%clk 00:53:53]} {[%emt 00:03:12]} Ng6 {[%clk
00:33:45]} {[%emt 00:02:04]} 14. Qe1 {[%clk 00:54:00]} {[%emt 00:00:23]} d5
{[%clk 00:31:17]} {[%emt 00:02:59]} 15. e5 {[%clk 00:53:16]} {[%emt 00:01:13]}
Ne4 {[%clk 00:29:39]} {[%emt 00:02:08]} 16. Nxe4 {[%clk 00:50:35]} {[%emt
00:03:11]} dxe4 {[%clk 00:29:58]} {[%emt 00:00:12]} 17. Bc4 {[%clk 00:49:30]}
{[%emt 00:01:34]} Bc5 {[%clk 00:20:05]} {[%emt 00:10:24]} 18. Qc3 {[%clk
00:41:43]} {[%emt 00:08:17]} Bxd4 {[%clk 00:11:37]} {[%emt 00:08:58]} 19. Bxd4
{[%clk 00:41:03]} {[%emt 00:01:09]} c5 {[%clk 00:10:36]} {[%emt 00:01:32]} 20.
Be3 {[%clk 00:40:21]} {[%emt 00:01:12]} b6 {[%clk 00:07:10]} {[%emt 00:03:57]}
21. Rxd8+ {[%clk 00:36:07]} {[%emt 00:04:44]} Qxd8 {[%clk 00:07:29]} {[%emt
00:00:11]} 22. f5 {[%clk 00:35:58]} {[%emt 00:00:38]} Ne7 {[%clk 00:05:23]}
{[%emt 00:02:37]} 23. f6 {[%clk 00:34:31]} {[%emt 00:01:56]} Nd5 {[%clk
00:04:11]} {[%emt 00:01:42]} 24. Rd1 {[%clk 00:34:17]} {[%emt 00:00:44]} Be6
{[%clk 00:03:29]} {[%emt 00:01:12]} 25. Bxd5 {[%clk 00:34:19]} {[%emt
00:00:27]} Bxd5 {[%clk 00:03:38]} {[%emt 00:00:21]} 26. Qd2 {[%clk 00:34:44]}
{[%emt 00:00:05]} 1-0